bitfinex-derivatives/quotes_ETHF0:USTF0_20240830
["timestamp","ask_amount","ask_price","bid_price","bid_amount"]
[1725008640806,10.03912986,2523.2,2523.1,5.19993975]
[1725008641008,10.03912986,2523.2,2523.1,5.99274321]
[1725008641413,10.42882986,2523.2,2523.1,5.99274321]
[1725008641810,6.07592986,2523.2,2523.1,6.63606229]
[1725008642013,6.45342986,2523.2,2523.1,5.99274321]
[1725008642613,6.45342986,2523.2,2523.1,4.70443681]
[1725008642809,6.45342986,2523.2,2523.1,5.99273988]
[1725008643920,11.40727986,2523.2,2523.1,5.99273988]
[1725008644318,11.40727986,2523.2,2523.1,6.40531778]
[1725008644619,6.45342986,2523.2,2523.1,6.40531778]
[1725008645015,6.45342986,2523.2,2523.1,7.12371778]
[1725008645425,6.07592986,2523.2,2523.1,7.12371778]
[1725008645614,6.07592986,2523.2,2523.1,7.49381778]
[1725008645814,6.07592986,2523.2,2523.1,6.00305651]
[1725008646013,6.07592986,2523.2,2523.1,8.07589973]
[1725008646322,6.07592986,2523.2,2523.1,5.77606819]
[1725008646914,6.07592986,2523.2,2523.1,5.40596819]
[1725008648928,6.07592986,2523.2,2523.1,2.71026926]
[1725008649125,6.07592986,2523.2,2523.1,3.7047916]
[1725008649314,6.07592986,2523.2,2523.1,4.11717943]
[1725008649626,6.07592986,2523.2,2523.1,5.4054656]
[1725008649922,11.02977986,2523.2,2523.1,4.6870656]
[1725008650122,11.02977986,2523.2,2523.1,3.80697347]
[1725008650322,11.02977986,2523.2,2523.1,3.39458564]
[1725008650818,22.21888986,2523.2,2523.1,2.78466665]
[1725008651022,22.21888986,2523.2,2523.1,2.50875918]
[1725008653325,22.21888986,2523.2,2523.1,1.71596769]
[1725008654429,22.21888986,2523.2,2523.1,2.50893168]
[1725008654622,16.44520961,2523.2,2523.1,2.50893168]
[1725008655223,16.44520961,2523.2,2523.1,1.22047301]
[1725008657023,14.46389961,2523.2,2523.1,1.22047301]
[1725008659123,14.46389961,2523.2,2523.1,2.50896339]
[1725008659626,11.25609961,2523.2,2523.1,2.50896339]
[1725008660521,10.03912986,2523.2,2523.1,1.71604623]
[1725008660922,6.07592986,2523.2,2523.1,1.71604623]
[1725008661433,6.07592986,2523.2,2523.1,2.47684623]
[1725008661922,6.07592986,2523.2,2523.1,1.25637322]
[1725008662120,6.07592986,2523.2,2523.1,0.7608]
[1725008662528,7.06657986,2523.2,2523.1,0.3852]
[1725008662722,6.07592986,2523.2,2523.1,0.3852]
[1725008665433,4.72327986,2523.2,2523.1,0.3852]
[1725008666332,4.72327986,2523.2,2523.1,0.78147]
[1725008666629,4.72327986,2523.2,2523.1,0.3852]
[1725008667045,4.72327986,2523.2,2523.1,1.15887]
[1725008667230,4.72327986,2523.2,2523.1,0.7626]
[1725008667922,4.32701986,2523.2,2523.1,0.7626]
[1725008668327,0.39626,2523.2,2523.1,1.15886]
[1725008668726,4.91793055,2523.2,2523.1,1.15886]
[1725008669936,4.91793055,2523.2,2523.1,1.76839585]
[1725008670841,4.91793055,2523.2,2523.1,3.05668485]
[1725008671031,4.91793055,2523.2,2523.1,3.05658813]
[1725008671640,4.91793055,2523.2,2523.1,1.76829913]
[1725008671841,4.91793055,2523.2,2523.1,3.05659005]
[1725008674337,4.91793055,2523.2,2523.1,3.46866318]
[1725008674534,4.91793055,2523.2,2523.1,4.34800098]
[1725008674734,4.91793055,2523.2,2523.1,3.46866318]
[1725008675136,4.52167055,2523.2,2523.1,7.43186318]
[1725008675436,0.39626,2523.2,2523.1,8.95368251]
[1725008675641,0.39626,2523.2,2523.1,9.98601385]
[1725008677748,0.39626,2523.2,2523.1,9.58975385]
[1725008677937,5.70461806,2523.2,2523.1,4.59422251]
[1725008678133,6.09081806,2523.2,2523.1,4.59422251]
[1725008678533,5.10016806,2523.2,2523.1,4.59422251]
[1725008678740,4.71396806,2523.2,2523.1,4.99049251]
[1725008678943,4.71396806,2523.2,2523.1,4.59422251]
[1725008680441,4.71396806,2523.2,2523.1,5.62655385]
[1725008680639,4.71396806,2523.2,2523.1,6.02282586]
[1725008680840,4.71396806,2523.2,2523.1,9.98602586]
[1725008681040,4.71396806,2523.2,2523.1,9.58975586]
[1725008681341,4.31770806,2523.2,2523.1,11.96290475]
[1725008681543,4.31770806,2523.2,2523.1,11.96292497]
[1725008681946,4.31770806,2523.2,2523.1,9.981029]
[1725008682240,4.71396806,2523.2,2523.1,9.981029]
[1725008682945,4.71396806,2523.2,2523.1,11.56668404]
[1725008683147,4.71396806,2523.2,2523.1,9.584759]
[1725008683543,4.71396806,2523.2,2523.1,11.9629953]
[1725008683746,4.71396806,2523.2,2523.1,7.10403291]
[1725008683954,4.71396806,2523.2,2523.1,11.46375853]
[1725008684263,4.71396806,2523.2,2523.1,12.75200331]
[1725008684442,4.71396806,2523.2,2523.1,14.30050032]
[1725008684752,4.71396806,2523.2,2523.1,12.75200331]
[1725008685049,0.39626,2523.2,2523.1,14.30050032]
[1725008685255,0.39624,2523.3,2523.2,0.39625]
[1725008685446,0.39624,2523.3,2523.2,6.2877043]
[1725008685646,4.60958115,2523.3,2523.2,10.2509043]
[1725008685856,4.60958115,2523.3,2523.2,9.8546543]
[1725008686537,4.60958115,2523.3,2523.2,8.82086131]
[1725008686950,4.60958115,2523.3,2523.2,6.30566264]
[1725008687144,4.60958115,2523.3,2523.2,8.82074899]
[1725008687344,4.60958115,2523.3,2523.2,7.53250421]
[1725008687544,4.60958115,2523.3,2523.2,7.92876421]
[1725008687741,4.60958115,2523.3,2523.2,9.2169825]
[1725008687948,4.21334115,2523.3,2523.2,11.04111372]
[1725008688142,4.60958115,2523.3,2523.2,11.04116745]
[1725008688451,4.60958115,2523.3,2523.2,11.04106264]
[1725008688647,4.60958115,2523.3,2523.2,13.02284953]
[1725008688954,4.60958115,2523.3,2523.2,11.04106666]
[1725008689149,4.21334115,2523.3,2523.2,11.04106666]
[1725008689345,4.60958115,2523.3,2523.2,17.04094521]
[1725008689549,0.39624,2523.3,2523.2,17.04094521]
[1725008690180,0.39624,2523.3,2523.2,6.68130277]
[1725008690350,0.39624,2523.3,2523.2,7.47164766]
[1725008690545,0.39624,2523.3,2523.2,9.75325967]
[1725008690955,0.39624,2523.3,2523.2,10.24870292]
[1725008691259,0.39624,2523.3,2523.2,10.2510059]
[1725008692158,0.39624,2523.3,2523.2,11.04161235]
[1725008692461,0.39624,2523.3,2523.2,10.2510059]
[1725008693356,0.39624,2523.3,2523.2,6.6811756]
[1725008693565,0.39624,2523.3,2523.2,10.25275788]
[1725008693755,0.39624,2523.3,2523.2,6.0357158]
[1725008694059,0.39624,2523.3,2523.2,10.25304734]
[1725008694463,0.39624,2523.3,2523.2,11.54123065]
[1725008697076,0.39624,2523.3,2523.2,11.54121188]
[1725008698374,0.39624,2523.3,2523.2,12.33209435]
[1725008699265,0.39624,2523.4,2523.3,0.39622]
[1725008699461,0.39624,2523.4,2523.3,7.44038893]
[1725008699663,0.39624,2523.4,2523.3,10.6127895]
[1725008700162,0.39624,2523.4,2523.3,9.57922635]
[1725008700372,0.39624,2523.4,2523.3,11.40343574]
[1725008700669,0.39624,2523.4,2523.3,9.57907722]
[1725008700867,0.39622,2523.5,2523.4,0.39622]
[1725008701170,0.39622,2523.5,2523.4,5.25607722]
[1725008701463,0.39622,2523.5,2523.4,9.58837722]
[1725008702657,0.39622,2523.5,2523.4,9.58827713]
[1725008702861,1.38675,2523.5,2523.4,9.19205713]
[1725008703062,0.39622,2523.5,2523.4,9.58828713]
[1725008703670,0.39622,2523.5,2523.4,9.19205713]
[1725008703969,1.38675,2523.5,2523.4,9.19205713]
[1725008704169,2.37728,2523.5,2523.4,4.85975713]
[1725008704471,2.37756,2523.2,2523.1,1.03356315]
[1725008704671,0.99069,2523.1,2522.9,0.00595108]
[1725008704865,2.73225,2523.0,2522.9,0.00595108]
[1725008705176,2.73225,2523.0,2522.9,1.49698961]
[1725008705177,7.17782652,2523.0,2522.9,1.49698961]
[1725008706068,7.17782652,2523.0,2522.9,1.49669905]
[1725008708471,6.18709652,2523.0,2522.9,1.49669905]
[1725008708667,6.18709652,2523.0,2522.9,1.49658095]
[1725008709182,6.18709652,2523.0,2522.9,0.6160845]
[1725008709587,7.17782652,2523.0,2522.9,0.61615571]
[1725008709872,13.12329652,2523.0,2522.9,0.61615571]
[1725008711367,0.99093,2522.5,2522.3,4.24136315]
[1725008711578,0.78218,2522.4,2522.3,4.62926315]
[1725008711874,5.04263644,2522.4,2522.3,6.11639924]
[1725008712269,5.04263644,2522.4,2522.3,5.08705037]
[1725008712470,6.03360644,2522.4,2522.3,5.08705037]
[1725008712671,6.03360644,2522.4,2522.3,4.69919035]
[1725008712863,7.02457644,2522.4,2522.3,4.69919035]
[1725008713069,14.19717644,2522.4,2522.3,1.49139035]
[1725008713272,14.19717644,2522.4,2522.3,0.61042565]
[1725008713273,10.98937644,2522.4,2522.3,0.61042565]
[1725008713570,2.37849,2522.2,2522.1,0.00595108]
[1725008713773,2.37849,2522.2,2522.1,0.61670077]
[1725008713962,10.63188305,2522.2,2522.1,0.61670077]
[1725008714363,10.63188305,2522.2,2522.1,0.00595108]
[1725008714563,10.63188305,2522.2,2522.1,0.61673615]
[1725008715071,10.63188305,2522.2,2522.1,0.61672239]
[1725008715264,10.63188305,2522.2,2522.1,0.00595108]
[1725008716575,10.63188305,2522.2,2522.1,0.50170609]
[1725008717571,10.63188305,2522.2,2522.1,0.50170504]
[1725008719181,10.63188305,2522.2,2522.1,0.00595108]
[1725008719486,10.63188305,2522.2,2522.1,0.50169517]
[1725008720273,4.68500305,2522.2,2522.1,0.50169517]
[1725008722077,4.68500305,2522.2,2522.1,0.00595108]
[1725008722475,4.68500305,2522.2,2522.1,0.50167191]
[1725008723286,4.68500305,2522.2,2522.1,0.99737107]
[1725008726181,5.67604305,2522.2,2522.1,0.99737107]
[1725008727176,4.68500305,2522.2,2522.1,0.99737107]
[1725008731891,4.68500305,2522.2,2522.1,1.39380107]
[1725008732089,4.68500305,2522.2,2522.1,0.99737107]
[1725008732590,4.68500305,2522.2,2522.1,0.50165217]
[1725008732987,4.68500305,2522.2,2522.1,0.89808217]
[1725008733187,4.28859305,2522.2,2522.1,0.89808217]
[1725008733583,4.74218659,2522.3,2522.2,0.39641]
[1725008733785,0.3964,2522.3,2522.2,1.28451109]
[1725008733985,0.3964,2522.3,2522.2,42.08451109]
[1725008734182,4.58444698,2522.3,2522.2,41.68810109]
[1725008734384,5.57545698,2522.3,2522.2,0.3924]
[1725008734602,1.38745,2522.2,2522.1,0.00595108]
[1725008735090,9.51391521,2522.2,2522.1,0.00595108]
[1725008737286,9.51391521,2522.2,2522.1,0.50168389]
[1725008737492,5.54911521,2522.2,2522.1,0.50168389]
[1725008738093,9.51391521,2522.2,2522.1,0.50168389]
[1725008738789,5.54911521,2522.2,2522.1,0.50168389]
[1725008738994,5.54911521,2522.2,2522.1,0.00595108]
[1725008739187,5.54911521,2522.2,2522.1,0.50168092]
[1725008739693,9.51391521,2522.2,2522.1,0.50168092]
[1725008741295,5.54911521,2522.2,2522.1,0.50168092]
[1725008742190,9.51391521,2522.2,2522.1,0.50168092]
[1725008742587,10.50495521,2522.2,2522.1,0.50168092]
[1725008744894,16.50495521,2522.2,2522.1,0.01038818]
[1725008745194,1.38779,2521.6,2521.5,0.391]
[1725008745390,1.38779,2521.6,2521.5,1.41576672]
[1725008745590,5.66432684,2521.6,2521.5,0.391]
[1725008748305,5.66432684,2521.6,2521.5,1.41601396]
[1725008748886,5.66432684,2521.6,2521.5,0.391]
[1725008749089,5.66432684,2521.6,2521.5,1.00244866]
[1725008749285,5.66432684,2521.6,2521.5,1.41595729]
[1725008752293,5.66432684,2521.6,2521.5,0.391]
[1725008752595,5.66432684,2521.6,2521.5,1.41583878]
[1725008753700,5.66432684,2521.6,2521.5,1.0023768]
[1725008753900,5.66432684,2521.6,2521.5,0.6113768]
[1725008754995,9.62992684,2521.6,2521.5,0.6113768]
[1725008755500,0.39654,2521.4,2521.3,0.38295108]
[1725008755702,0.39654,2521.4,2521.3,0.7964713]
[1725008755896,4.76686037,2521.4,2521.3,2.29040231]
[1725008757107,4.76686037,2521.4,2521.3,2.78625768]
[1725008757797,6.74958037,2521.4,2521.3,2.78625768]
[1725008757992,10.31278037,2521.4,2521.3,1.90378436]
[1725008758302,10.31278037,2521.4,2521.3,1.11326414]
[1725008758303,14.27918037,2521.4,2521.3,1.11326414]
[1725008758995,14.27918037,2521.4,2521.3,0.00595108]
[1725008759193,14.27918037,2521.4,2521.3,1.11351579]
[1725008761303,14.27918037,2521.4,2521.3,0.00595108]
[1725008761504,14.27918037,2521.4,2521.3,0.61759694]
[1725008761703,14.27918037,2521.4,2521.3,0.61759149]
[1725008761999,14.27918037,2521.4,2521.3,0.00595108]
[1725008762202,14.27918037,2521.4,2521.3,0.50188748]
[1725008762997,14.27918037,2521.4,2521.3,1.11353187]
[1725008763206,14.27918037,2521.4,2521.3,0.50188748]
[1725008765809,14.50365879,2521.4,2521.3,0.50188748]
[1725008766909,14.50365879,2521.4,2521.3,0.26841718]
[1725008768010,1.38801,2521.2,2521.1,0.00595108]
[1725008768305,5.75552831,2521.2,2521.1,0.00595108]
[1725008771720,6.74696831,2521.2,2521.1,0.00595108]
[1725008778919,10.71336831,2521.2,2521.1,0.50192424]
[1725008779425,10.71336831,2521.2,2521.0,0.3734]
[1725008779426,2.37955,2521.1,2521.0,0.3734]
[1725008779629,0.39665,2520.7,2520.6,0.3876]
[1725008779816,0.39668,2520.5,2520.4,0.3782]
[1725008780018,0.39668,2520.5,2520.4,0.98992803]
[1725008780214,4.76419831,2520.5,2520.4,0.3782]
[1725008780414,0.3967,2520.4,2520.3,0.3876]
[1725008780615,0.3967,2520.4,2520.3,0.99934799]
[1725008780811,4.95461487,2520.4,2520.3,0.99934799]
[1725008781211,4.55791487,2520.4,2520.3,0.99934799]
[1725008781416,4.95461487,2520.4,2520.3,0.99934799]
[1725008781614,0.3967,2520.4,2520.3,0.99934799]
[1725008781922,4.55319204,2520.4,2520.3,0.99934799]
[1725008782219,4.55319204,2520.4,2520.3,0.3876]
[1725008783324,4.55319204,2520.4,2520.3,0.99934044]
[1725008783325,4.15649204,2520.4,2520.3,0.99934044]
[1725008783717,0.39669,2520.5,2520.3,0.99934044]
[1725008783913,4.49513088,2520.4,2520.3,0.99934044]
[1725008784314,4.89183088,2520.4,2520.3,0.99934044]
[1725008784824,0.3967,2520.4,2520.3,0.99934044]
[1725008785021,4.53046465,2520.4,2520.3,0.99934044]
[1725008786423,4.53046465,2520.4,2520.3,0.3876]
[1725008787223,4.13376465,2520.4,2520.3,4.75231]
[1725008788221,4.13376465,2520.4,2520.3,7.96011]
[1725008788529,0.39665,2520.7,2520.6,0.39666]
[1725008788831,4.59224188,2520.7,2520.6,0.39666]
[1725008789023,4.59224188,2520.7,2520.6,3.9672]
[1725008790021,4.59224188,2520.7,2520.6,4.36387]
[1725008790216,4.19559188,2520.7,2520.6,4.36387]
[1725008790518,0.39661,2521.0,2520.6,3.9672]
[1725008790822,4.58245245,2520.8,2520.5,0.99171]
[1725008791016,4.58245245,2520.8,2520.7,0.39665]
[1725008791225,3.2078,2521.2,2520.8,0.99159]
[1725008791418,3.2078,2521.2,2521.1,0.39659]
[1725008791818,8.16520583,2521.2,2521.1,3.9664]
[1725008792221,7.76863583,2521.2,2521.1,4.38002953]
[1725008792520,7.76863583,2521.2,2521.1,4.77661953]
[1725008792826,4.95740583,2521.2,2521.1,4.77661953]
[1725008793525,4.95740583,2521.2,2521.1,5.27249669]
[1725008795224,4.95740583,2521.2,2521.1,1.30609669]
[1725008795930,4.95740583,2521.2,2521.1,2.80038461]
[1725008796821,4.56083583,2521.2,2521.1,2.80038461]
[1725008797135,0.39656,2521.3,2521.2,0.39657]
[1725008797136,4.385808,2521.3,2521.2,0.39657]
[1725008797428,1.98217,2522.2,2521.6,0.39651]
[1725008797429,0.3965,2521.7,2521.6,0.39651]
[1725008797631,0.3965,2521.7,2521.6,1.91761874]
[1725008797924,4.782308,2521.7,2521.6,2.80021441]
[1725008798125,4.782308,2521.7,2521.6,2.40370441]
[1725008798425,4.782308,2521.7,2521.6,1.52110874]
[1725008798930,4.782308,2521.7,2521.6,1.02512278]
[1725008799529,4.782308,2521.7,2521.6,1.52093273]
[1725008799727,4.385808,2521.7,2521.6,1.91744273]
[1725008799918,4.782298,2521.7,2521.6,2.80004449]
[1725008800325,4.782298,2521.7,2521.6,1.30589182]
[1725008800526,4.782298,2521.7,2521.6,2.7999939]
[1725008801331,4.782298,2521.7,2521.6,2.4034839]
[1725008801917,4.782298,2521.7,2521.6,1.52091237]
[1725008802122,4.782298,2521.7,2521.6,2.40349711]
[1725008802926,4.782298,2521.7,2521.6,1.52091745]
[1725008804331,4.782298,2521.7,2521.6,1.52093079]
[1725008805340,4.782298,2521.7,2521.6,1.52093917]
[1725008805637,4.782298,2521.7,2521.6,1.02512922]
[1725008805936,4.782298,2521.7,2521.6,1.52094352]
[1725008806139,4.782298,2521.7,2521.6,1.10736842]
[1725008807139,10.730378,2521.7,2521.6,1.10736842]
[1725008807335,11.473378,2521.7,2521.6,1.10736842]
[1725008808235,11.473378,2521.7,2521.6,0.4958143]
[1725008808833,0.39655,2521.4,2521.2,0.3676]
[1725008809033,0.39655,2521.4,2521.3,1.02522177]
[1725008809433,4.81327784,2521.4,2521.3,1.02522177]
[1725008809739,4.81327784,2521.4,2521.3,1.52109735]
[1725008811938,4.81327784,2521.4,2521.3,1.90785334]
[1725008812140,4.81327784,2521.4,2521.3,1.52106867]
[1725008812736,4.81327784,2521.4,2521.3,1.52106585]
[1725008814932,4.81327784,2521.4,2521.3,1.52107072]
[1725008818335,4.81327784,2521.4,2521.3,1.52107377]
[1725008819042,4.81327784,2521.4,2521.3,1.91763377]
[1725008820538,4.81327784,2521.4,2521.3,2.40371191]
[1725008820739,10.76239784,2521.4,2521.3,1.10745628]
[1725008821044,1.38812,2521.0,2520.9,1.03356315]
[1725008821241,4.59592,2521.0,2520.9,1.03356315]
[1725008821438,18.71182652,2521.0,2520.9,1.03356315]
[1725008823345,12.71182652,2521.0,2520.9,1.03356315]
[1725008829147,18.71182652,2521.0,2520.9,1.03356315]
[1725008829347,12.71182652,2521.0,2520.9,1.03356315]
[1725008830048,12.71182652,2521.0,2520.4,1.14629]
[1725008830049,0.39666,2520.7,2520.4,1.14629]
[1725008830252,0.39666,2520.7,2520.4,0.7496]
[1725008830553,4.33821713,2520.6,2520.5,0.41372988]
[1725008830955,4.73488713,2520.6,2520.4,1.14628]
[1725008831255,4.33821713,2520.6,2520.4,1.14628]
[1725008831544,0.39667,2520.6,2520.4,1.14628]
[1725008831749,4.34460376,2520.6,2520.5,0.39668]
[1725008831947,0.39666,2520.7,2520.4,1.14629]
[1725008832158,4.91132223,2520.7,2520.4,1.14629]
[1725008832450,0.39667,2520.6,2520.4,1.14629]
[1725008832651,4.91133223,2520.6,2520.4,1.14629]
[1725008832951,0.39667,2520.6,2520.5,1.10765261]
[1725008833343,4.3633701,2520.6,2520.5,1.10765261]
[1725008833642,4.3633701,2520.6,2520.5,0.49602499]
[1725008833840,4.3633701,2520.6,2520.5,1.10765359]
[1725008834948,0.39659,2521.1,2520.9,0.39661]
[1725008835149,0.39655,2521.4,2521.0,2.25837439]
[1725008835347,0.39655,2521.4,2521.1,1.27050499]
[1725008835548,4.54447821,2521.2,2521.1,0.77448]
[1725008835740,4.54447821,2521.3,2521.1,1.88188794]
[1725008835944,0.39655,2521.4,2521.2,1.10740794]
[1725008836249,0.39653,2521.5,2521.3,1.10740232]
[1725008836441,0.39653,2521.5,2521.1,0.77448]
[1725008836442,0.39653,2521.5,2521.4,0.49588506]
[1725008836748,4.9786193,2521.5,2521.4,0.49588506]
[1725008837056,0.39657,2521.3,2521.1,0.3779]
[1725008837249,0.39657,2521.2,2521.1,0.3779]
[1725008837445,4.61780922,2521.2,2521.1,0.98943007]
[1725008837645,0.39657,2521.2,2521.1,0.98943007]
[1725008837841,0.39657,2521.2,2521.1,5.45175041]
[1725008838047,4.61780922,2521.2,2521.1,5.45175041]
[1725008840457,4.61780922,2521.2,2521.1,5.45175713]
[1725008840652,4.61780922,2521.2,2521.1,1.10745713]
[1725008847347,4.61780922,2521.2,2521.1,1.52110921]
[1725008847657,4.61780922,2521.2,2521.1,1.10745713]
[1725008848253,4.61780922,2521.2,2521.1,1.52111074]
[1725008848855,4.61780922,2521.2,2521.1,1.5211283]
[1725008851063,4.61780922,2521.2,2521.1,0.90957122]
[1725008851262,4.61780922,2521.2,2521.1,1.02518265]
[1725008851468,4.61780922,2521.2,2521.1,1.52108902]
[1725008852167,4.61780922,2521.2,2521.1,2.40370426]
[1725008852759,4.61780922,2521.2,2521.1,2.80029426]
[1725008853169,4.61780922,2521.2,2521.1,0.89249637]
[1725008853366,4.61780922,2521.2,2521.1,2.30434266]
[1725008853563,4.61780922,2521.2,2521.1,1.90775266]
[1725008853967,4.61780922,2521.2,2521.1,2.80023124]
[1725008854362,4.61780922,2521.2,2521.1,2.40364124]
[1725008854565,4.61780922,2521.2,2521.1,2.80023124]
[1725008855665,4.61780922,2521.2,2521.1,2.40364124]
[1725008856668,4.61780922,2521.2,2521.1,2.80023124]
[1725008859075,4.61780922,2521.2,2521.1,2.40364124]
[1725008859369,4.97470922,2521.2,2521.1,2.40364124]
[1725008859572,4.97470922,2521.2,2521.1,0.9095194]
[1725008859760,4.97470922,2521.2,2521.1,2.40365165]
[1725008862873,4.97470922,2521.2,2521.1,2.80025396]
[1725008863080,4.97470922,2521.2,2521.1,1.90777538]
[1725008863374,4.97470922,2521.2,2521.1,2.80026237]
[1725008864963,4.97470922,2521.2,2521.1,2.40367237]
[1725008866269,4.97470922,2521.2,2521.1,2.80025055]
[1725008866572,4.97470922,2521.2,2521.1,2.30435356]
[1725008866769,4.97470922,2521.2,2521.1,2.80024618]
[1725008867272,4.22123922,2521.2,2521.1,2.80024618]
[1725008867476,4.22123922,2521.2,2521.1,8.40325366]
[1725008867778,4.94545605,2521.4,2521.3,0.39656]
[1725008867967,0.39654,2521.4,2521.3,2.80021618]
[1725008868162,4.9726487,2521.4,2521.3,2.80021618]
[1725008868675,4.9726487,2521.4,2521.3,3.16941618]
[1725008869664,4.9726487,2521.4,2521.3,3.16937789]
[1725008871171,4.5761087,2521.4,2521.3,10.34357789]
[1725008871377,0.37545108,2521.8,2521.4,0.99132]
[1725008871574,0.00595108,2521.8,2521.7,0.39649]
[1725008871779,0.00595108,2521.8,2521.7,2.80010789]
[1725008871973,4.41105439,2521.8,2521.7,7.50710789]
[1725008872868,4.41105439,2521.8,2521.7,7.50684919]
[1725008873073,4.80753439,2521.8,2521.7,7.50684919]
[1725008876481,4.80753439,2521.8,2521.7,7.50673579]
[1725008876681,4.80753439,2521.8,2521.7,7.01088146]
[1725008876881,4.80753439,2521.8,2521.7,7.50663644]
[1725008877069,4.80753439,2521.8,2521.7,6.76523644]
[1725008877275,5.79873439,2521.8,2521.7,1.52071029]
[1725008877584,5.79873439,2521.8,2521.7,1.10717969]
[1725008877882,6.18963439,2521.8,2521.7,1.10717969]
[1725008879879,0.3965,2521.7,2521.5,3.97202]
[1725008880289,0.3965,2521.7,2521.6,1.90754096]
[1725008880589,4.57957866,2521.7,2521.6,1.90754096]
[1725008880773,4.57957866,2521.7,2521.6,2.40335069]
[1725008882274,4.57957866,2521.7,2521.6,2.4033081]
[1725008882479,4.57957866,2521.7,2521.6,2.40329289]
[1725008885585,4.57957866,2521.7,2521.6,0.49579452]
[1725008885887,4.57957866,2521.7,2521.5,3.97202]
[1725008886086,4.57957866,2521.7,2521.6,1.79188338]
[1725008886277,4.57957866,2521.7,2521.6,2.40334925]
[1725008886679,4.57957866,2521.7,2521.6,2.89912685]
[1725008889080,4.57957866,2521.7,2521.6,0.99161948]
[1725008889390,4.57957866,2521.7,2521.6,2.8991565]
[1725008890591,4.57957866,2521.7,2521.6,2.89915649]
[1725008891184,4.57957866,2521.7,2521.6,3.29566649]
[1725008891685,4.57957866,2521.7,2521.6,2.79985676]
[1725008892488,4.57957866,2521.7,2521.6,0.39651]
[1725008892686,4.57957866,2521.7,2521.6,2.30399605]
[1725008893394,4.57957866,2521.7,2521.6,2.799786]
[1725008895991,4.57957866,2521.7,2521.6,1.95083492]
[1725008896186,4.57957866,2521.7,2521.6,2.94894709]
[1725008896387,4.57957866,2521.7,2521.6,2.79973463]
[1725008896586,4.57957866,2521.7,2521.6,3.44472863]
[1725008897497,4.57957866,2521.7,2521.6,3.44473571]
[1725008897794,4.57957866,2521.7,2521.6,3.44473368]
[1725008897994,4.18307866,2521.7,2521.6,3.44473368]
[1725008898995,4.57956866,2521.7,2521.6,3.44473368]
[1725008899498,4.57956866,2521.7,2521.6,3.44472726]
[1725008900295,4.18307866,2521.7,2521.6,3.44472726]
[1725008900800,4.57956866,2521.7,2521.6,3.44472726]
[1725008900997,4.18307866,2521.7,2521.6,3.44472726]
[1725008901294,4.18307866,2521.7,2521.6,11.41572885]
[1725008902990,4.18307866,2521.7,2521.6,11.41568849]
[1725008905395,4.18307866,2521.7,2521.6,12.97043027]
[1725008905594,4.18307866,2521.7,2521.6,11.41568849]
[1725008906299,0.00595108,2521.8,2521.7,1.38773]
[1725008906599,0.00595108,2521.8,2521.7,11.21691806]
[1725008912206,0.00595108,2521.8,2521.7,13.19985975]
[1725008912707,0.00595108,2521.8,2521.7,7.13817933]
[1725008913206,0.00595108,2521.8,2521.7,8.08217799]
[1725008913501,0.00595108,2521.8,2521.7,9.63691977]
[1725008913706,0.00595108,2521.8,2521.7,8.08217799]
[1725008913903,0.00595108,2521.8,2521.7,9.75825996]
[1725008914103,0.00595108,2521.8,2521.7,12.16134588]
[1725008914609,0.00595108,2521.8,2521.7,13.71608766]
[1725008914996,0.00595108,2521.8,2521.7,12.68494967]
[1725008916008,0.00595108,2521.8,2521.7,11.62648711]
[1725008916210,0.00595108,2521.8,2521.7,11.06298533]
[1725008916516,0.00595108,2521.8,2521.7,12.12143281]
[1725008916710,0.00595108,2521.8,2521.7,12.91508688]
[1725008917505,0.00595108,2521.8,2521.7,25.44209498]
[1725008917707,0.00595108,2521.8,2521.7,23.36910593]
[1725008917910,0.00239156,2521.8,2521.7,64.78872798]
[1725008918101,0.00239156,2521.8,2521.7,64.7881451]
[1725008918300,1.56e-06,2521.8,2521.7,67.37938141]
[1725008918608,1.56e-06,2521.8,2521.7,64.16852305]
[1725008919003,1.56e-06,2521.8,2521.7,64.1682651]
[1725008919603,1.56e-06,2521.8,2521.7,66.69282318]
[1725008921413,1.56e-06,2521.8,2521.7,68.76890274]
[1725008921614,1.56e-06,2521.8,2521.7,64.80367684]
[1725008921814,1.56e-06,2521.8,2521.7,65.29931462]
[1725008922220,1.56e-06,2521.8,2521.7,68.50711462]
[1725008922813,1.56e-06,2521.8,2521.7,66.98060601]
[1725008923018,1.56e-06,2521.8,2521.7,68.50717683]
[1725008925515,1.56e-06,2521.8,2521.7,68.01153833]
[1725008925723,1.56e-06,2521.8,2521.7,68.50717166]
[1725008926215,1.56e-06,2521.8,2521.7,66.09820286]
[1725008926425,1.56e-06,2521.8,2521.7,68.01145363]
[1725008926718,1.56e-06,2521.8,2521.7,68.50707985]
[1725008927528,1.56e-06,2521.8,2521.7,68.01134131]
[1725008927820,1.56e-06,2521.8,2521.7,68.01129595]
[1725008928924,1.56e-06,2521.8,2521.7,70.51977354]
[1725008929223,1.56e-06,2521.8,2521.7,69.90024076]
[1725008929523,1.56e-06,2521.8,2521.7,71.97436902]
[1725008929739,1.56e-06,2521.8,2521.7,69.90023231]
[1725008930024,1.56e-06,2521.8,2521.7,71.97438411]
[1725008930513,1.56e-06,2521.8,2521.7,68.00935974]
[1725008930716,1.56e-06,2521.8,2521.7,72.50225264]
[1725008930924,1.56e-06,2521.8,2521.7,75.09348895]
[1725008931223,1.56e-06,2521.8,2521.7,75.71301867]
[1725008931817,1.56e-06,2521.8,2521.7,74.47395617]
[1725008932120,1.56e-06,2521.8,2521.7,71.88271986]
[1725008932322,1.56e-06,2521.8,2521.7,74.47395617]
[1725008932521,1.56e-06,2521.8,2521.7,74.47305124]
[1725008932717,1.56e-06,2521.8,2521.7,71.88181493]
[1725008932924,1.56e-06,2521.8,2521.7,69.35723618]
[1725008933122,1.56e-06,2521.8,2521.7,71.88156151]
[1725008933417,1.56e-06,2521.8,2521.7,71.88149063]
[1725008934120,1.56e-06,2521.8,2521.7,75.1123757]
[1725008934321,1.56e-06,2521.8,2521.7,76.96383969]
[1725008934713,1.56e-06,2521.8,2521.7,77.36063969]
[1725008936119,1.56e-06,2521.8,2521.7,79.951876]
[1725008936322,0.356,2522.9,2522.8,0.39632]
[1725008936523,0.356,2522.9,2522.8,4.01747375]
[1725008936817,0.356,2522.9,2522.8,4.62872974]
[1725008937216,0.356,2522.9,2522.8,5.12426017]
[1725008937419,0.356,2522.9,2522.8,45.92426017]
[1725008939212,0.356,2522.9,2522.8,49.88826017]
[1725008939417,0.356,2522.9,2522.8,49.27700418]
[1725008939625,0.3856,2523.0,2522.9,1.38707]
[1725008939819,0.23257923,2523.1,2523.0,0.39629]
[1725008940121,0.23257923,2523.1,2523.0,3.59680975]
[1725008940629,0.23257923,2523.1,2523.0,1.91641049]
[1725008941614,0.23257923,2523.1,2523.0,0.80961109]
[1725008941922,0.23257923,2523.1,2523.0,1.91630164]
[1725008942322,0.62884923,2523.1,2523.0,1.52001164]